[Event "Late-Titled-Tuesday-Blitz-June-18-2024"]
[Site "Chess.com"]
[Date "2024.06.18"]
[Round "3"]
[White "ValeriyGrinev"]
[Black "aexmi"]
[Result "1-0"]
[WhiteElo "2552"]
[BlackElo "2287"]
[TimeControl "180+1"]
[EndTime "14:27:02 PDT"]
[Termination "ValeriyGrinev won on time"]

1. d4 {[%clk 0:02:25.8]} 1... d5 {[%clk 0:02:58.5]} 2. c4 {[%clk 0:02:26]} 2...
e6 {[%clk 0:02:58.6]} 3. Nf3 {[%clk 0:02:26.3]} 3... c5 {[%clk 0:02:57.2]} 4.
dxc5 {[%clk 0:02:26.2]} 4... Bxc5 {[%clk 0:02:56]} 5. e3 {[%clk 0:02:26.1]} 5...
Nf6 {[%clk 0:02:55.7]} 6. a3 {[%clk 0:02:26]} 6... a6 {[%clk 0:02:52.2]} 7. b4
{[%clk 0:02:26.1]} 7... Ba7 {[%clk 0:02:43.7]} 8. Bb2 {[%clk 0:02:26.1]} 8...
O-O {[%clk 0:02:43.1]} 9. Nbd2 {[%clk 0:02:25.3]} 9... Nc6 {[%clk 0:02:42]} 10.
Rc1 {[%clk 0:02:25.3]} 10... d4 {[%clk 0:01:56.1]} 11. exd4 {[%clk 0:02:26.2]}
11... Nxd4 {[%clk 0:01:55.9]} 12. Be2 {[%clk 0:02:26.7]} 12... Nxe2 {[%clk
0:01:46.5]} 13. Qxe2 {[%clk 0:02:27.6]} 13... Bd7 {[%clk 0:01:41.5]} 14. Ne5
{[%clk 0:02:26.3]} 14... Rc8 {[%clk 0:01:07.8]} 15. O-O {[%clk 0:02:25.4]} 15...
Bc6 {[%clk 0:01:07.9]} 16. Nxc6 {[%clk 0:02:25.4]} 16... Rxc6 {[%clk 0:01:08.1]}
17. Ne4 {[%clk 0:02:24.9]} 17... Nxe4 {[%clk 0:01:06.8]} 18. Qxe4 {[%clk
0:02:25.8]} 18... Qg5 {[%clk 0:00:52.9]} 19. Rfd1 {[%clk 0:02:22.9]} 19... Rd8
{[%clk 0:00:32.1]} 20. h4 {[%clk 0:02:19.1]} 20... Rxd1+ {[%clk 0:00:28.7]} 21.
Rxd1 {[%clk 0:02:20]} 21... Qe7 {[%clk 0:00:25.4]} 22. c5 {[%clk 0:02:19.8]}
22... Bb8 {[%clk 0:00:22.1]} 23. Qd4 {[%clk 0:02:19.5]} 23... f6 {[%clk
0:00:03]} 24. Qd8+ {[%clk 0:02:19.3]} 24... Kf7 {[%clk 0:00:02]} 25. Rd7 {[%clk
0:02:19.1]} 1-0

[Event "Late-Titled-Tuesday-Blitz-June-18-2024"]
[Site "Chess.com"]
[Date "2024.06.18"]
[Round "3"]
[White "RantomOpening"]
[Black "NovakRatko"]
[Result "1-0"]
[WhiteElo "2610"]
[BlackElo "2411"]
[TimeControl "180+1"]
[EndTime "14:27:25 PDT"]
[Termination "RantomOpening won by resignation"]

1. b3 {[%clk 0:03:00.4]} 1... d5 {[%clk 0:03:00.1]} 2. Bb2 {[%clk 0:02:59.9]}
2... c5 {[%clk 0:03:01]} 3. Nf3 {[%clk 0:02:58.5]} 3... Nc6 {[%clk 0:03:01.4]}
4. e3 {[%clk 0:02:55.1]} 4... f6 {[%clk 0:03:01.6]} 5. d4 {[%clk 0:02:52.4]}
5... Bg4 {[%clk 0:03:01.9]} 6. dxc5 {[%clk 0:02:45.1]} 6... e5 {[%clk
0:03:00.5]} 7. Be2 {[%clk 0:02:26.9]} 7... Bxc5 {[%clk 0:02:56.7]} 8. O-O {[%clk
0:02:26.7]} 8... Be6 {[%clk 0:02:51.7]} 9. Nbd2 {[%clk 0:02:25.5]} 9... Nge7
{[%clk 0:02:51.2]} 10. c4 {[%clk 0:02:25.1]} 10... d4 {[%clk 0:02:51.3]} 11.
exd4 {[%clk 0:02:19.7]} 11... exd4 {[%clk 0:02:50.9]} 12. Bd3 {[%clk 0:02:18.1]}
12... O-O {[%clk 0:02:50.4]} 13. a3 {[%clk 0:02:18.2]} 13... a5 {[%clk
0:02:50.2]} 14. Qc2 {[%clk 0:02:17.8]} 14... h6 {[%clk 0:02:48.9]} 15. Ne4
{[%clk 0:02:17.7]} 15... b6 {[%clk 0:02:48.3]} 16. Rfe1 {[%clk 0:02:17.2]} 16...
Bg4 {[%clk 0:02:47.3]} 17. Nfd2 {[%clk 0:02:14.6]} 17... f5 {[%clk 0:02:44.3]}
18. Ng3 {[%clk 0:02:03.6]} 18... f4 {[%clk 0:02:42.7]} 19. Nge4 {[%clk
0:02:01.1]} 19... f3 {[%clk 0:02:40.8]} 20. h3 {[%clk 0:01:37.5]} 20... Bd7
{[%clk 0:02:39.8]} 21. Nxf3 {[%clk 0:01:35.9]} 21... Bxh3 {[%clk 0:02:38.1]} 22.
Nxc5 {[%clk 0:01:34.3]} 22... bxc5 {[%clk 0:02:35.9]} 23. Be4 {[%clk 0:01:29.5]}
23... Bf5 {[%clk 0:02:30.6]} 24. Rad1 {[%clk 0:01:25.2]} 24... Rb8 {[%clk
0:02:24.5]} 25. Bxf5 {[%clk 0:00:52.7]} 25... Nxf5 {[%clk 0:02:23.7]} 26. Qe4
{[%clk 0:00:47.7]} 26... Qc7 {[%clk 0:02:13.4]} 27. Qd5+ {[%clk 0:00:45.2]}
27... Kh8 {[%clk 0:02:04.9]} 28. Qxc5 {[%clk 0:00:44.8]} 28... Rxb3 {[%clk
0:01:38.9]} 29. Qxf8+ {[%clk 0:00:44]} 1-0

[Event "Late-Titled-Tuesday-Blitz-June-18-2024"]
[Site "Chess.com"]
[Date "2024.06.18"]
[Round "3"]
[White "schondeln"]
[Black "PNEPaul"]
[Result "1/2-1/2"]
[WhiteElo "2340"]
[BlackElo "1979"]
[TimeControl "180+1"]
[EndTime "14:27:28 PDT"]
[Termination "Game drawn by repetition"]

1. e4 {[%clk 0:03:00.9]} 1... e5 {[%clk 0:02:58.6]} 2. Nf3 {[%clk 0:02:59.1]}
2... Nc6 {[%clk 0:02:58.8]} 3. Nc3 {[%clk 0:02:59.3]} 3... Be7 {[%clk
0:02:58.5]} 4. d4 {[%clk 0:02:57.3]} 4... exd4 {[%clk 0:02:58.3]} 5. Nxd4 {[%clk
0:02:57.4]} 5... d6 {[%clk 0:02:58.5]} 6. Bb5 {[%clk 0:02:51.5]} 6... Bd7 {[%clk
0:02:57.9]} 7. Bxc6 {[%clk 0:02:51.6]} 7... bxc6 {[%clk 0:02:57.5]} 8. Qf3
{[%clk 0:02:50.7]} 8... Nf6 {[%clk 0:02:54.6]} 9. O-O {[%clk 0:02:50.2]} 9...
O-O {[%clk 0:02:54.2]} 10. Nf5 {[%clk 0:02:49.4]} 10... Bxf5 {[%clk 0:02:52.9]}
11. Qxf5 {[%clk 0:02:49.9]} 11... Qd7 {[%clk 0:02:52.2]} 12. Qf3 {[%clk
0:02:48.1]} 12... Qg4 {[%clk 0:02:49.7]} 13. Qxg4 {[%clk 0:02:43.3]} 13... Nxg4
{[%clk 0:02:49]} 14. Bf4 {[%clk 0:02:43.1]} 14... Bf6 {[%clk 0:02:45.3]} 15. h3
{[%clk 0:02:35]} 15... Bxc3 {[%clk 0:02:40.8]} 16. bxc3 {[%clk 0:02:34.9]} 16...
Ne5 {[%clk 0:02:40.4]} 17. Rab1 {[%clk 0:02:29.8]} 17... Rab8 {[%clk 0:02:39.5]}
18. Rb3 {[%clk 0:02:25.3]} 18... f6 {[%clk 0:02:29.7]} 19. Rfb1 {[%clk
0:02:24.9]} 19... Rb6 {[%clk 0:02:28.9]} 20. Be3 {[%clk 0:02:22.9]} 20... Ra6
{[%clk 0:02:18.3]} 21. Rb7 {[%clk 0:02:17.5]} 21... Rxa2 {[%clk 0:02:15.8]} 22.
Rxa7 {[%clk 0:02:10.2]} 22... Ra8 {[%clk 0:02:01.4]} 23. Rxa2 {[%clk 0:01:17.2]}
23... Rxa2 {[%clk 0:01:59.9]} 24. Rb8+ {[%clk 0:01:17.6]} 24... Kf7 {[%clk
0:01:59]} 25. Rb7 {[%clk 0:01:18.3]} 25... Rxc2 {[%clk 0:01:54.6]} 26. Rxc7+
{[%clk 0:01:18.2]} 26... Kg6 {[%clk 0:01:53.7]} 27. Bd4 {[%clk 0:01:18.5]} 27...
c5 {[%clk 0:01:48.5]} 28. Be3 {[%clk 0:01:12.2]} 28... Rxc3 {[%clk 0:01:46.2]}
29. Kf1 {[%clk 0:01:08.1]} 29... Rc2 {[%clk 0:01:39.6]} 30. g3 {[%clk
0:01:03.7]} 30... c4 {[%clk 0:01:26.9]} 31. Bd4 {[%clk 0:01:02.4]} 31... Nf3
{[%clk 0:01:17.3]} 32. Be3 {[%clk 0:00:54.8]} 32... Ne5 {[%clk 0:01:16.2]} 33.
Bd4 {[%clk 0:00:54.6]} 33... Nf3 {[%clk 0:01:16.1]} 34. Be3 {[%clk 0:00:54.8]}
34... Ne5 {[%clk 0:01:16.3]} 1/2-1/2

[Event "Late-Titled-Tuesday-Blitz-June-18-2024"]
[Site "Chess.com"]
[Date "2024.06.18"]
[Round "3"]
[White "NajdorfPlayerc5"]
[Black "becemix"]
[Result "1-0"]
[WhiteElo "2439"]
[BlackElo "2599"]
[TimeControl "180+1"]
[EndTime "14:27:32 PDT"]
[Termination "NajdorfPlayerc5 won by resignation"]

1. d4 {[%clk 0:03:00.9]} 1... d5 {[%clk 0:02:59.1]} 2. c4 {[%clk 0:03:00.1]}
2... e6 {[%clk 0:02:58.4]} 3. Nc3 {[%clk 0:02:57.4]} 3... c6 {[%clk 0:02:58.8]}
4. cxd5 {[%clk 0:02:40.6]} 4... exd5 {[%clk 0:02:58.4]} 5. Nf3 {[%clk
0:02:39.6]} 5... Nf6 {[%clk 0:02:58.6]} 6. Bg5 {[%clk 0:02:38]} 6... Be7 {[%clk
0:02:58.9]} 7. e3 {[%clk 0:02:37.7]} 7... O-O {[%clk 0:02:59.2]} 8. Qc2 {[%clk
0:02:36.1]} 8... Re8 {[%clk 0:02:59.4]} 9. Bd3 {[%clk 0:02:33.5]} 9... h6 {[%clk
0:02:59.7]} 10. Bh4 {[%clk 0:02:33.1]} 10... a5 {[%clk 0:02:59.8]} 11. O-O
{[%clk 0:02:32.6]} 11... Nbd7 {[%clk 0:02:59.9]} 12. Rab1 {[%clk 0:02:21.4]}
12... Nf8 {[%clk 0:02:59.4]} 13. a3 {[%clk 0:02:18.4]} 13... b5 {[%clk
0:02:59.4]} 14. Ne2 {[%clk 0:02:13.9]} 14... Bb7 {[%clk 0:02:58.8]} 15. Ne5
{[%clk 0:02:07.9]} 15... Rc8 {[%clk 0:02:58.8]} 16. b4 {[%clk 0:01:55.5]} 16...
axb4 {[%clk 0:02:56.8]} 17. axb4 {[%clk 0:01:56.4]} 17... N6d7 {[%clk 0:02:54]}
18. Bxe7 {[%clk 0:01:35.4]} 18... Qxe7 {[%clk 0:02:54.9]} 19. Bf5 {[%clk
0:01:22.8]} 19... Rc7 {[%clk 0:02:52.7]} 20. Nxd7 {[%clk 0:01:20.7]} 20... Nxd7
{[%clk 0:02:53.6]} 21. Bxd7 {[%clk 0:01:21.2]} 21... Qxd7 {[%clk 0:02:53.7]} 22.
Ra1 {[%clk 0:01:17.6]} 22... Qd6 {[%clk 0:02:53.1]} 23. Qc3 {[%clk 0:01:15]}
23... Bc8 {[%clk 0:02:53.2]} 24. Nf4 {[%clk 0:01:14]} 24... Bf5 {[%clk
0:02:52.9]} 25. Ra6 {[%clk 0:01:10.7]} 25... g5 {[%clk 0:02:44.4]} 26. Ne2
{[%clk 0:01:04.7]} 26... Kg7 {[%clk 0:02:44.6]} 27. Rc1 {[%clk 0:01:03.7]} 27...
Re6 {[%clk 0:02:43]} 28. Ng3 {[%clk 0:00:56.8]} 28... Bg6 {[%clk 0:02:42.9]} 29.
Qc5 {[%clk 0:00:55.5]} 29... Qd7 {[%clk 0:02:42.6]} 30. Nf1 {[%clk 0:00:50.9]}
30... h5 {[%clk 0:02:42.2]} 31. Rb6 {[%clk 0:00:48.1]} 31... Bd3 {[%clk
0:02:35.7]} 32. Nd2 {[%clk 0:00:43.7]} 32... Bc4 {[%clk 0:02:34.8]} 33. e4
{[%clk 0:00:37.8]} 33... f6 {[%clk 0:02:26.4]} 34. Nxc4 {[%clk 0:00:31.3]} 34...
dxc4 {[%clk 0:02:20.1]} 35. e5 {[%clk 0:00:23]} 35... Qd5 {[%clk 0:02:15.3]} 36.
Qxd5 {[%clk 0:00:22.2]} 36... cxd5 {[%clk 0:02:10.7]} 37. Rxe6 {[%clk
0:00:23.1]} 37... fxe5 {[%clk 0:02:08.7]} 38. Rxe5 {[%clk 0:00:24]} 38... Rd7
{[%clk 0:02:09]} 39. Rxg5+ {[%clk 0:00:23.7]} 1-0

[Event "Late-Titled-Tuesday-Blitz-June-18-2024"]
[Site "Chess.com"]
[Date "2024.06.18"]
[Round "3"]
[White "AungTZ"]
[Black "ClauAmura"]
[Result "0-1"]
[WhiteElo "1972"]
[BlackElo "2350"]
[TimeControl "180+1"]
[EndTime "14:27:35 PDT"]
[Termination "ClauAmura won by checkmate"]

1. c4 {[%clk 0:02:24.2]} 1... e6 {[%clk 0:02:58.9]} 2. Nc3 {[%clk 0:02:23.6]}
2... d5 {[%clk 0:02:59.5]} 3. e3 {[%clk 0:02:21]} 3... c5 {[%clk 0:02:58.9]} 4.
cxd5 {[%clk 0:02:19]} 4... exd5 {[%clk 0:02:56.5]} 5. d4 {[%clk 0:02:19.9]} 5...
Nf6 {[%clk 0:02:55.7]} 6. Nf3 {[%clk 0:02:17.4]} 6... Nc6 {[%clk 0:02:56.2]} 7.
Bb5 {[%clk 0:01:54.5]} 7... cxd4 {[%clk 0:02:45.4]} 8. Nxd4 {[%clk 0:01:53.8]}
8... Bd7 {[%clk 0:02:46]} 9. O-O {[%clk 0:01:44.5]} 9... Bc5 {[%clk 0:02:43.9]}
10. Nde2 {[%clk 0:01:36.8]} 10... O-O {[%clk 0:02:43]} 11. Nxd5 {[%clk
0:01:35.7]} 11... Ne4 {[%clk 0:02:31.4]} 12. Nec3 {[%clk 0:01:22.2]} 12... Nd6
{[%clk 0:02:29.1]} 13. Be2 {[%clk 0:01:11.1]} 13... Bf5 {[%clk 0:02:28.3]} 14.
a3 {[%clk 0:01:05.6]} 14... a5 {[%clk 0:02:27.5]} 15. Bd3 {[%clk 0:00:49.8]}
15... Be6 {[%clk 0:02:22.5]} 16. e4 {[%clk 0:00:46.5]} 16... Qh4 {[%clk
0:02:19.5]} 17. Bf4 {[%clk 0:00:39]} 17... Rad8 {[%clk 0:02:08.8]} 18. Bg3
{[%clk 0:00:37.1]} 18... Qh6 {[%clk 0:02:05.2]} 19. Qc1 {[%clk 0:00:24.9]} 19...
Qh5 {[%clk 0:01:56.7]} 20. Rd1 {[%clk 0:00:19.7]} 20... Nd4 {[%clk 0:01:57.1]}
21. b4 {[%clk 0:00:16]} 21... Nb3 {[%clk 0:01:56.9]} 22. Qb2 {[%clk 0:00:14.9]}
22... axb4 {[%clk 0:01:55.2]} 23. axb4 {[%clk 0:00:14.3]} 23... Nxa1 {[%clk
0:01:53.8]} 24. bxc5 {[%clk 0:00:13.9]} 24... Nxe4 {[%clk 0:01:44.5]} 25. Bxe4
{[%clk 0:00:13.7]} 25... Bxd5 {[%clk 0:01:44.1]} 26. Nxd5 {[%clk 0:00:11.5]}
26... Qxd1# {[%clk 0:01:42.4]} 0-1

[Event "Late-Titled-Tuesday-Blitz-June-18-2024"]
[Site "Chess.com"]
[Date "2024.06.18"]
[Round "3"]
[White "JCVanDamme10"]
[Black "protectiago"]
[Result "0-1"]
[WhiteElo "2363"]
[BlackElo "2143"]
[TimeControl "180+1"]
[EndTime "14:27:37 PDT"]
[Termination "protectiago won by checkmate"]

1. e4 {[%clk 0:03:00.9]} 1... e5 {[%clk 0:02:56.2]} 2. Nf3 {[%clk 0:03:00.8]}
2... Nc6 {[%clk 0:02:55.6]} 3. d4 {[%clk 0:03:00.5]} 3... exd4 {[%clk
0:02:55.3]} 4. Nxd4 {[%clk 0:03:01.1]} 4... Nf6 {[%clk 0:02:52.3]} 5. Nc3 {[%clk
0:02:59]} 5... Bb4 {[%clk 0:02:46.8]} 6. Nxc6 {[%clk 0:02:58.9]} 6... bxc6
{[%clk 0:02:44]} 7. Bd3 {[%clk 0:02:59.2]} 7... d5 {[%clk 0:02:43.9]} 8. exd5
{[%clk 0:02:57.9]} 8... cxd5 {[%clk 0:02:44.1]} 9. Bb5+ {[%clk 0:02:57.7]} 9...
Bd7 {[%clk 0:02:40.9]} 10. Bxd7+ {[%clk 0:02:58.2]} 10... Qxd7 {[%clk
0:02:38.9]} 11. O-O {[%clk 0:02:58.8]} 11... O-O {[%clk 0:02:38.4]} 12. Bg5
{[%clk 0:02:57.7]} 12... Bxc3 {[%clk 0:02:38.1]} 13. bxc3 {[%clk 0:02:56.9]}
13... Ne4 {[%clk 0:02:38.3]} 14. Bd2 {[%clk 0:02:51.9]} 14... Rad8 {[%clk
0:02:29]} 15. f3 {[%clk 0:02:48]} 15... Nxd2 {[%clk 0:02:24.7]} 16. Qxd2 {[%clk
0:02:48.2]} 16... Rfe8 {[%clk 0:02:15.3]} 17. Rfe1 {[%clk 0:02:46]} 17... h6
{[%clk 0:02:12.9]} 18. Rxe8+ {[%clk 0:02:45]} 18... Qxe8 {[%clk 0:02:12.8]} 19.
Re1 {[%clk 0:02:44.6]} 19... Qa4 {[%clk 0:02:11]} 20. Re7 {[%clk 0:02:36.9]}
20... c6 {[%clk 0:01:54.5]} 21. Qe3 {[%clk 0:02:13]} 21... Qxa2 {[%clk
0:01:49.1]} 22. Re8+ {[%clk 0:02:12.5]} 22... Rxe8 {[%clk 0:01:49.3]} 23. Qxe8+
{[%clk 0:02:13]} 23... Kh7 {[%clk 0:01:49.8]} 24. Qxc6 {[%clk 0:02:08.1]} 24...
Qb1+ {[%clk 0:01:47.6]} 25. Kf2 {[%clk 0:02:06.8]} 25... Qxc2+ {[%clk
0:01:47.8]} 26. Kg3 {[%clk 0:02:07.5]} 26... Qg6+ {[%clk 0:01:45.8]} 27. Qxg6+
{[%clk 0:02:07.2]} 27... Kxg6 {[%clk 0:01:46.7]} 28. Kf4 {[%clk 0:02:07.3]}
28... Kf6 {[%clk 0:01:27.2]} 29. Ke3 {[%clk 0:02:05.2]} 29... Ke5 {[%clk
0:01:25.6]} 30. f4+ {[%clk 0:02:05.1]} 30... Kd6 {[%clk 0:01:25.6]} 31. Kd4
{[%clk 0:02:05.3]} 31... a5 {[%clk 0:01:21.8]} 32. c4 {[%clk 0:02:05.7]} 32...
dxc4 {[%clk 0:01:21.1]} 33. Kxc4 {[%clk 0:02:06.3]} 33... Ke6 {[%clk 0:01:20]}
34. g4 {[%clk 0:02:03.9]} 34... h5 {[%clk 0:01:15.4]} 35. h3 {[%clk 0:02:00.7]}
35... h4 {[%clk 0:01:13.3]} 36. Kd4 {[%clk 0:01:52.2]} 36... a4 {[%clk 0:01:13]}
37. Kc4 {[%clk 0:01:46.2]} 37... a3 {[%clk 0:01:13.1]} 38. Kb3 {[%clk
0:01:46.8]} 38... Kd5 {[%clk 0:01:13.7]} 39. Kxa3 {[%clk 0:01:47.2]} 39... Ke4
{[%clk 0:01:14.3]} 40. Kb4 {[%clk 0:01:32.5]} 40... Kxf4 {[%clk 0:01:14.3]} 41.
Kc5 {[%clk 0:01:33.2]} 41... Kg3 {[%clk 0:01:14.6]} 42. Kd6 {[%clk 0:01:33.8]}
42... Kxh3 {[%clk 0:01:14.9]} 43. Ke7 {[%clk 0:01:34.5]} 43... Kxg4 {[%clk
0:01:14.8]} 44. Kxf7 {[%clk 0:01:34.4]} 44... h3 {[%clk 0:01:15]} 45. Kxg7
{[%clk 0:01:34.4]} 45... h2 {[%clk 0:01:15.3]} 46. Kf6 {[%clk 0:01:34.9]} 46...
h1=Q {[%clk 0:01:15.3]} 47. Ke6 {[%clk 0:01:35.8]} 47... Qe4+ {[%clk 0:01:14.4]}
48. Kf6 {[%clk 0:01:36.7]} 48... Qd5 {[%clk 0:01:13.2]} 49. Kg7 {[%clk
0:01:36.5]} 49... Qe6 {[%clk 0:01:11.2]} 50. Kf8 {[%clk 0:01:37.4]} 50... Qd7
{[%clk 0:01:10.3]} 51. Kg8 {[%clk 0:01:37.3]} 51... Kg5 {[%clk 0:01:10.5]} 52.
Kh8 {[%clk 0:01:38.2]} 52... Kg6 {[%clk 0:01:10]} 53. Kg8 {[%clk 0:01:39.1]}
53... Qg7# {[%clk 0:01:10.1]} 0-1

[Event "Late-Titled-Tuesday-Blitz-June-18-2024"]
[Site "Chess.com"]
[Date "2024.06.18"]
[Round "3"]
[White "zenitushka"]
[Black "WilsonPalencia21"]
[Result "0-1"]
[WhiteElo "2389"]
[BlackElo "2587"]
[TimeControl "180+1"]
[EndTime "14:27:44 PDT"]
[Termination "WilsonPalencia21 won by resignation"]

1. d4 {[%clk 0:02:59.9]} 1... Nf6 {[%clk 0:02:54.3]} 2. f3 {[%clk 0:02:58.1]}
2... c5 {[%clk 0:02:54]} 3. d5 {[%clk 0:02:57.7]} 3... e6 {[%clk 0:02:53.5]} 4.
e4 {[%clk 0:02:48]} 4... exd5 {[%clk 0:02:53.5]} 5. exd5 {[%clk 0:02:48.9]} 5...
d6 {[%clk 0:02:53.8]} 6. Nc3 {[%clk 0:02:46.8]} 6... g6 {[%clk 0:02:54.2]} 7.
Bf4 {[%clk 0:02:46.2]} 7... Nh5 {[%clk 0:02:53.1]} 8. Bg3 {[%clk 0:02:39.6]}
8... Nxg3 {[%clk 0:02:52]} 9. hxg3 {[%clk 0:02:40.5]} 9... Bg7 {[%clk
0:02:51.9]} 10. Qd2 {[%clk 0:02:35.5]} 10... O-O {[%clk 0:02:51.4]} 11. O-O-O
{[%clk 0:02:36.3]} 11... a6 {[%clk 0:02:51.5]} 12. g4 {[%clk 0:02:32.6]} 12...
b5 {[%clk 0:02:50.1]} 13. g5 {[%clk 0:02:32.4]} 13... Nd7 {[%clk 0:02:44.5]} 14.
Ne4 {[%clk 0:02:27.7]} 14... Ne5 {[%clk 0:02:29.5]} 15. g4 {[%clk 0:02:18]}
15... Re8 {[%clk 0:02:19.8]} 16. Qh2 {[%clk 0:02:13.4]} 16... Nxg4 {[%clk
0:01:55.5]} 17. Qxh7+ {[%clk 0:01:59.6]} 17... Kf8 {[%clk 0:01:53.4]} 18. fxg4
{[%clk 0:01:30.6]} 18... Rxe4 {[%clk 0:01:51.1]} 19. Bd3 {[%clk 0:01:27.1]}
19... Qxg5+ {[%clk 0:01:33.5]} 20. Kb1 {[%clk 0:01:25.8]} 20... Bxg4 {[%clk
0:01:24.9]} 21. Rf1 {[%clk 0:01:10.3]} 21... Qe5 {[%clk 0:01:15.1]} 0-1

[Event "Late-Titled-Tuesday-Blitz-June-18-2024"]
[Site "Chess.com"]
[Date "2024.06.18"]
[Round "3"]
[White "Smiechu"]
[Black "Artem_Koval"]
[Result "0-1"]
[WhiteElo "2333"]
[BlackElo "2562"]
[TimeControl "180+1"]
[EndTime "14:27:45 PDT"]
[Termination "Artem_Koval won by checkmate"]

1. e4 {[%clk 0:03:00.9]} 1... c5 {[%clk 0:03:00.1]} 2. Nf3 {[%clk 0:03:00.8]}
2... d6 {[%clk 0:03:00.8]} 3. d4 {[%clk 0:03:01.2]} 3... cxd4 {[%clk 0:03:01.7]}
4. Nxd4 {[%clk 0:03:01.7]} 4... Nf6 {[%clk 0:03:02.4]} 5. Nc3 {[%clk 0:03:02]}
5... a6 {[%clk 0:03:03]} 6. Be3 {[%clk 0:03:02.1]} 6... e5 {[%clk 0:03:03]} 7.
Nb3 {[%clk 0:03:02.1]} 7... Be6 {[%clk 0:03:03.7]} 8. Qd2 {[%clk 0:03:02.4]}
8... Be7 {[%clk 0:03:04.3]} 9. O-O-O {[%clk 0:03:02.8]} 9... O-O {[%clk
0:03:02.8]} 10. f4 {[%clk 0:03:02.9]} 10... b5 {[%clk 0:02:40.5]} 11. f5 {[%clk
0:03:02.7]} 11... Bc8 {[%clk 0:02:40]} 12. g4 {[%clk 0:03:02.3]} 12... Bb7
{[%clk 0:02:38.9]} 13. g5 {[%clk 0:02:29.9]} 13... Nxe4 {[%clk 0:02:34.2]} 14.
Nxe4 {[%clk 0:02:30.4]} 14... Bxe4 {[%clk 0:02:34.8]} 15. Bg2 {[%clk 0:02:31]}
15... Bxg2 {[%clk 0:02:29.1]} 16. Qxg2 {[%clk 0:02:30.5]} 16... Nd7 {[%clk
0:02:28.2]} 17. f6 {[%clk 0:02:27.2]} 17... Nxf6 {[%clk 0:02:12.6]} 18. gxf6
{[%clk 0:02:26.9]} 18... Bxf6 {[%clk 0:02:13.5]} 19. Qd5 {[%clk 0:02:24]} 19...
Be7 {[%clk 0:02:10.6]} 20. Rhg1 {[%clk 0:02:22.8]} 20... Kh8 {[%clk 0:02:08.4]}
21. h4 {[%clk 0:02:15.1]} 21... Rc8 {[%clk 0:02:01.1]} 22. h5 {[%clk 0:02:14.6]}
22... Qc7 {[%clk 0:02:00.3]} 23. Rg2 {[%clk 0:02:11.6]} 23... Qc4 {[%clk
0:02:00.4]} 24. Qf3 {[%clk 0:02:02]} 24... f5 {[%clk 0:01:55.9]} 25. Qg3 {[%clk
0:01:38.4]} 25... Bf6 {[%clk 0:01:46.2]} 26. Bg5 {[%clk 0:01:36.8]} 26... f4
{[%clk 0:01:28.4]} 27. Qf2 {[%clk 0:01:15.9]} 27... Bxg5 {[%clk 0:01:15.7]} 28.
Rxg5 {[%clk 0:01:15.9]} 28... e4 {[%clk 0:01:16]} 29. Rd4 {[%clk 0:01:04.9]}
29... e3 {[%clk 0:01:15.6]} 30. Rxc4 {[%clk 0:01:04.1]} 30... exf2 {[%clk
0:01:15.2]} 31. Nd2 {[%clk 0:00:51.6]} 31... bxc4 {[%clk 0:01:11.4]} 32. Rg2
{[%clk 0:00:51.7]} 32... Rce8 {[%clk 0:01:06]} 33. Rxf2 {[%clk 0:00:51.8]} 33...
Re1# {[%clk 0:01:05.8]} 0-1

[Event "Late-Titled-Tuesday-Blitz-June-18-2024"]
[Site "Chess.com"]
[Date "2024.06.18"]
[Round "3"]
[White "Sanyura"]
[Black "mestrefeitosa19"]
[Result "1-0"]
[WhiteElo "2530"]
[BlackElo "2300"]
[TimeControl "180+1"]
[EndTime "14:27:49 PDT"]
[Termination "Sanyura won by checkmate"]

1. e4 {[%clk 0:03:00.9]} 1... e5 {[%clk 0:02:56.2]} 2. Nf3 {[%clk 0:03:00.7]}
2... Nc6 {[%clk 0:02:56.1]} 3. Bb5 {[%clk 0:03:01.1]} 3... Nd4 {[%clk
0:02:52.7]} 4. Nxd4 {[%clk 0:03:00.2]} 4... exd4 {[%clk 0:02:53.6]} 5. O-O
{[%clk 0:03:00.4]} 5... c6 {[%clk 0:02:54.3]} 6. Bc4 {[%clk 0:02:59.3]} 6... Nf6
{[%clk 0:02:54.7]} 7. e5 {[%clk 0:02:59.2]} 7... d5 {[%clk 0:02:55.1]} 8. Bb3
{[%clk 0:02:58.4]} 8... Ne4 {[%clk 0:02:52.2]} 9. d3 {[%clk 0:02:55.3]} 9... Nc5
{[%clk 0:02:52.6]} 10. Nd2 {[%clk 0:02:55.6]} 10... Be7 {[%clk 0:02:52.4]} 11.
Nf3 {[%clk 0:02:55.4]} 11... Nxb3 {[%clk 0:02:51.2]} 12. axb3 {[%clk 0:02:56.3]}
12... c5 {[%clk 0:02:51.7]} 13. h3 {[%clk 0:02:56.3]} 13... O-O {[%clk
0:02:52.2]} 14. c3 {[%clk 0:02:57.2]} 14... dxc3 {[%clk 0:02:51.7]} 15. bxc3
{[%clk 0:02:58.1]} 15... d4 {[%clk 0:02:50.9]} 16. c4 {[%clk 0:02:57.2]} 16...
b6 {[%clk 0:02:51.3]} 17. b4 {[%clk 0:02:56.4]} 17... Bb7 {[%clk 0:02:51.4]} 18.
b5 {[%clk 0:02:54.2]} 18... Qc7 {[%clk 0:02:47.4]} 19. Re1 {[%clk 0:02:54.3]}
19... Rfe8 {[%clk 0:02:45.9]} 20. Bf4 {[%clk 0:02:53.9]} 20... Bf6 {[%clk
0:02:39.9]} 21. Qe2 {[%clk 0:02:47.2]} 21... Qd7 {[%clk 0:02:16.7]} 22. Nd2
{[%clk 0:02:38.9]} 22... Qf5 {[%clk 0:02:08.4]} 23. Bg3 {[%clk 0:02:35.3]} 23...
Bxe5 {[%clk 0:01:32.9]} 24. f4 {[%clk 0:01:49.5]} 24... Qg6 {[%clk 0:01:17.5]}
25. Kh2 {[%clk 0:01:43.8]} 25... Bd6 {[%clk 0:01:04.5]} 26. Qxe8+ {[%clk
0:01:44.3]} 26... Rxe8 {[%clk 0:01:03.9]} 27. Rxe8+ {[%clk 0:01:45.2]} 27... Bf8
{[%clk 0:01:03.5]} 28. Rxa7 {[%clk 0:01:45.3]} 28... Qxd3 {[%clk 0:00:45.3]} 29.
Rxb7 {[%clk 0:01:42.1]} 29... Qxd2 {[%clk 0:00:45.2]} 30. Rbb8 {[%clk
0:01:42.6]} 30... h6 {[%clk 0:00:31.9]} 31. f5 {[%clk 0:01:42.9]} 31... g6
{[%clk 0:00:14.2]} 32. Rxf8+ {[%clk 0:01:43]} 32... Kg7 {[%clk 0:00:14.1]} 33.
Be5+ {[%clk 0:01:43]} 33... f6 {[%clk 0:00:12.6]} 34. Bxf6+ {[%clk 0:01:43.4]}
34... Kh7 {[%clk 0:00:12.4]} 35. Rf7# {[%clk 0:01:43.8]} 1-0